[Event "Live Chess"]
[Site "Chess.com"]
[Date "2023.05.21"]
[Round "-"]
[White "Doge_Dandolo"]
[Black "NAZRIZ1977"]
[Result "0-1"]
[WhiteElo "1956"]
[BlackElo "2010"]
[TimeControl "300"]
[EndTime "17:23:06 PDT"]
[Termination "NAZRIZ1977 won by resignation"]

1. Nf3 {[%clk 0:04:58.9]} 1... g6 {[%clk 0:04:58]} 2. c4 {[%clk 0:04:57.4]} 2...
Bg7 {[%clk 0:04:57.2]} 3. Nc3 {[%clk 0:04:56.9]} 3... Nf6 {[%clk 0:04:56.5]} 4.
e4 {[%clk 0:04:55.2]} 4... d6 {[%clk 0:04:55.3]} 5. d4 {[%clk 0:04:53.9]} 5...
O-O {[%clk 0:04:46.9]} 6. Be2 {[%clk 0:04:52.8]} 6... e5 {[%clk 0:04:46.3]} 7.
dxe5 {[%clk 0:04:51.9]} 7... dxe5 {[%clk 0:04:45.4]} 8. Qxd8 {[%clk 0:04:50.8]}
8... Rxd8 {[%clk 0:04:44.8]} 9. Bg5 {[%clk 0:04:50.4]} 9... c6 {[%clk
0:04:42.4]} 10. Nxe5 {[%clk 0:04:48.7]} 10... Re8 {[%clk 0:04:40.1]} 11. O-O-O
{[%clk 0:04:47.7]} 11... Be6 {[%clk 0:04:29.5]} 12. f3 {[%clk 0:04:42]} 12...
Na6 {[%clk 0:04:25.9]} 13. Bxf6 {[%clk 0:04:32]} 13... Bxf6 {[%clk 0:04:23.9]}
14. Ng4 {[%clk 0:04:28.9]} 14... Bg7 {[%clk 0:04:20.8]} 15. Ne3 {[%clk
0:04:26.5]} 15... Bh6 {[%clk 0:04:18.8]} 16. Rd3 {[%clk 0:04:23.8]} 16... Nc5
{[%clk 0:04:14.3]} 0-1

[Event "Live Chess"]
[Site "Chess.com"]
[Date "2023.05.21"]
[Round "-"]
[White "EdenHazard8"]
[Black "Cimon"]
[Result "1-0"]
[WhiteElo "1995"]
[BlackElo "1856"]
[TimeControl "300"]
[EndTime "17:23:10 PDT"]
[Termination "EdenHazard8 won by resignation"]

1. e4 {[%clk 0:04:58.8]} 1... c5 {[%clk 0:04:58.5]} 2. Nc3 {[%clk 0:04:57.8]}
2... Nc6 {[%clk 0:04:57]} 3. f4 {[%clk 0:04:56.5]} 3... d6 {[%clk 0:04:55]} 4.
Nf3 {[%clk 0:04:55.7]} 4... g6 {[%clk 0:04:53.8]} 5. Bb5 {[%clk 0:04:55]} 5...
Bg7 {[%clk 0:04:52.1]} 6. d3 {[%clk 0:04:54]} 6... Nf6 {[%clk 0:04:49.2]} 7. O-O
{[%clk 0:04:52.9]} 7... O-O {[%clk 0:04:47.4]} 8. Bxc6 {[%clk 0:04:52]} 8...
bxc6 {[%clk 0:04:46.2]} 9. Qe1 {[%clk 0:04:51.9]} 9... Rb8 {[%clk 0:04:38.8]}
10. Qh4 {[%clk 0:04:50.4]} 10... Ne8 {[%clk 0:04:24.5]} 11. f5 {[%clk
0:04:48.8]} 11... f6 {[%clk 0:04:16.2]} 12. Bh6 {[%clk 0:04:45.2]} 12... e5
{[%clk 0:03:59.9]} 13. Bxg7 {[%clk 0:04:36.9]} 13... Nxg7 {[%clk 0:03:46.5]} 14.
fxg6 {[%clk 0:04:35.6]} 14... hxg6 {[%clk 0:03:44.8]} 15. Qh6 {[%clk 0:04:35.2]}
15... Qe8 {[%clk 0:03:30.9]} 16. Nh4 {[%clk 0:04:32]} 16... Rb7 {[%clk
0:02:57.8]} 17. Nxg6 {[%clk 0:04:28.5]} 17... Kf7 {[%clk 0:02:29.6]} 18. Nxf8
{[%clk 0:04:16.2]} 18... Qxf8 {[%clk 0:02:27.7]} 19. Qxf6+ {[%clk 0:04:14.1]}
1-0

[Event "Live Chess"]
[Site "Chess.com"]
[Date "2023.05.21"]
[Round "-"]
[White "raminguy"]
[Black "Biranidun"]
[Result "0-1"]
[WhiteElo "1951"]
[BlackElo "2639"]
[TimeControl "300"]
[EndTime "17:23:12 PDT"]
[Termination "Biranidun won by resignation"]

1. d4 {[%clk 0:04:59.5]} 1... Nf6 {[%clk 0:04:58.8]} 2. Nc3 {[%clk 0:04:58.6]}
2... d5 {[%clk 0:04:57]} 3. Bf4 {[%clk 0:04:57.8]} 3... g6 {[%clk 0:04:55.8]} 4.
e3 {[%clk 0:04:55.4]} 4... Bg7 {[%clk 0:04:55.3]} 5. h4 {[%clk 0:04:54.2]} 5...
c6 {[%clk 0:04:54.4]} 6. Be2 {[%clk 0:04:51.8]} 6... h5 {[%clk 0:04:53.5]} 7.
Nf3 {[%clk 0:04:50.8]} 7... Bg4 {[%clk 0:04:50.3]} 8. Ne5 {[%clk 0:04:49.8]}
8... Bxe2 {[%clk 0:04:49.4]} 9. Qxe2 {[%clk 0:04:49.5]} 9... Nbd7 {[%clk
0:04:49.1]} 10. O-O-O {[%clk 0:04:47.7]} 10... Rc8 {[%clk 0:04:48.2]} 11. f3
{[%clk 0:04:40.9]} 11... b5 {[%clk 0:04:47.4]} 12. g4 {[%clk 0:04:37.3]} 12...
hxg4 {[%clk 0:04:46.2]} 13. fxg4 {[%clk 0:04:36.4]} 13... b4 {[%clk 0:04:45.1]}
14. Nb1 {[%clk 0:04:30.4]} 14... Ne4 {[%clk 0:04:43.8]} 15. h5 {[%clk
0:04:17.1]} 15... g5 {[%clk 0:04:36.7]} 16. Bh2 {[%clk 0:04:07.5]} 16... Nxe5
{[%clk 0:04:32.5]} 17. dxe5 {[%clk 0:04:05.5]} 17... Qa5 {[%clk 0:04:26.8]} 18.
Qf3 {[%clk 0:03:32.7]} 18... e6 {[%clk 0:04:22.7]} 19. Rdf1 {[%clk 0:03:29.7]}
19... Rc7 {[%clk 0:04:21.8]} 20. Bg1 {[%clk 0:02:57.7]} 20... Bxe5 {[%clk
0:04:17.8]} 21. h6 {[%clk 0:02:54.2]} 21... Qxa2 {[%clk 0:04:16.6]} 0-1

[Event "Live Chess"]
[Site "Chess.com"]
[Date "2023.05.21"]
[Round "-"]
[White "chessfiction"]
[Black "Jo1ts"]
[Result "1-0"]
[WhiteElo "2337"]
[BlackElo "801"]
[TimeControl "300"]
[EndTime "17:23:43 PDT"]
[Termination "chessfiction won by resignation"]

1. e4 {[%clk 0:04:59.7]} 1... d5 {[%clk 0:04:56.7]} 2. exd5 {[%clk 0:04:58.5]}
2... Qxd5 {[%clk 0:04:53]} 3. c4 {[%clk 0:04:57.7]} 3... Qc5 {[%clk 0:04:41.6]}
4. d4 {[%clk 0:04:55.9]} 4... Qb4+ {[%clk 0:04:35.3]} 5. Nc3 {[%clk 0:04:53.5]}
5... Nf6 {[%clk 0:04:30.5]} 6. Nf3 {[%clk 0:04:49.2]} 6... Nc6 {[%clk
0:04:15.3]} 7. a3 {[%clk 0:04:44.8]} 7... Qa5 {[%clk 0:04:03.8]} 8. b4 {[%clk
0:04:40.9]} 8... Qh5 {[%clk 0:04:00.7]} 9. d5 {[%clk 0:04:39.8]} 9... Ne5 {[%clk
0:03:55.6]} 10. Be2 {[%clk 0:04:39.1]} 10... Nxf3+ {[%clk 0:03:50.6]} 11. Bxf3
{[%clk 0:04:39]} 11... Qg5 {[%clk 0:03:46.5]} 12. Bxg5 {[%clk 0:04:37.2]} 1-0

[Event "Live Chess"]
[Site "Chess.com"]
[Date "2023.05.21"]
[Round "-"]
[White "JoshMcK"]
[Black "LL220284LL"]
[Result "0-1"]
[WhiteElo "1541"]
[BlackElo "2324"]
[TimeControl "300"]
[EndTime "17:23:48 PDT"]
[Termination "LL220284LL won by checkmate"]

1. e4 {[%clk 0:04:58.4]} 1... c5 {[%clk 0:04:58.2]} 2. c3 {[%clk 0:04:57.3]}
2... d5 {[%clk 0:04:55.9]} 3. exd5 {[%clk 0:04:56.4]} 3... Qxd5 {[%clk
0:04:55.8]} 4. d4 {[%clk 0:04:55.8]} 4... Nf6 {[%clk 0:04:54.3]} 5. Nf3 {[%clk
0:04:55.4]} 5... e6 {[%clk 0:04:50.6]} 6. Na3 {[%clk 0:04:50.8]} 6... cxd4
{[%clk 0:04:47.2]} 7. Nb5 {[%clk 0:04:46]} 7... Na6 {[%clk 0:04:41.5]} 8. Nbxd4
{[%clk 0:04:41.5]} 8... Bc5 {[%clk 0:04:36.3]} 9. Bxa6 {[%clk 0:04:38.8]} 9...
bxa6 {[%clk 0:04:35.5]} 10. O-O {[%clk 0:04:37.8]} 10... O-O {[%clk 0:04:34.2]}
11. Be3 {[%clk 0:04:32]} 11... Bb7 {[%clk 0:04:31.6]} 12. h3 {[%clk 0:04:21.7]}
12... Rad8 {[%clk 0:04:30]} 13. Qe2 {[%clk 0:04:19.1]} 13... Bb6 {[%clk
0:04:21.3]} 14. Nc2 {[%clk 0:04:14]} 14... Qh5 {[%clk 0:04:11.5]} 15. Nfd4
{[%clk 0:04:02.8]} 15... Qg6 {[%clk 0:04:02.7]} 16. Rad1 {[%clk 0:03:50.7]}
16... Qxg2# {[%clk 0:04:00.6]} 0-1

[Event "Live Chess"]
[Site "Chess.com"]
[Date "2023.05.21"]
[Round "-"]
[White "LodeshChess"]
[Black "John_Warren"]
[Result "1-0"]
[WhiteElo "1132"]
[BlackElo "1151"]
[TimeControl "300"]
[EndTime "17:23:57 PDT"]
[Termination "LodeshChess won by resignation"]

1. e4 {[%clk 0:04:53.7]} 1... d5 {[%clk 0:04:59.8]} 2. exd5 {[%clk 0:04:52.1]}
2... Qxd5 {[%clk 0:04:57.8]} 3. Nc3 {[%clk 0:04:51.7]} 3... Qe5+ {[%clk
0:04:54]} 4. Be2 {[%clk 0:04:49.7]} 4... e6 {[%clk 0:04:50.2]} 5. Nf3 {[%clk
0:04:47.4]} 5... Qh5 {[%clk 0:04:44.9]} 6. O-O {[%clk 0:04:34.2]} 6... Nf6
{[%clk 0:04:42.8]} 7. d4 {[%clk 0:04:28.2]} 7... Be7 {[%clk 0:04:39.8]} 8. Ne5
{[%clk 0:04:27.1]} 8... Qf5 {[%clk 0:04:33.9]} 9. Bg4 {[%clk 0:04:14.9]} 9...
Nxg4 {[%clk 0:04:31.2]} 10. Nxg4 {[%clk 0:04:11.2]} 10... O-O {[%clk 0:04:27]}
11. Ne3 {[%clk 0:04:09.9]} 11... Qg6 {[%clk 0:04:21.9]} 12. Nb5 {[%clk
0:04:06.3]} 12... Na6 {[%clk 0:04:18.7]} 13. c3 {[%clk 0:03:59.9]} 13... c6
{[%clk 0:04:16.8]} 14. Na3 {[%clk 0:03:58.8]} 14... c5 {[%clk 0:04:13]} 15. dxc5
{[%clk 0:03:51.1]} 15... Nxc5 {[%clk 0:04:10.7]} 16. Nac4 {[%clk 0:03:50.5]}
16... b5 {[%clk 0:04:05.3]} 17. Ne5 {[%clk 0:03:46.3]} 17... Qe4 {[%clk
0:04:00.8]} 18. Nf3 {[%clk 0:03:21.1]} 18... Bb7 {[%clk 0:03:55.2]} 19. Qd4
{[%clk 0:03:08.6]} 19... Qg6 {[%clk 0:03:44.6]} 20. Qg4 {[%clk 0:03:02.1]} 20...
Qxg4 {[%clk 0:03:40.4]} 21. Nxg4 {[%clk 0:03:00.6]} 21... Nd3 {[%clk 0:03:34.1]}
22. Nd4 {[%clk 0:02:52.2]} 22... Nxc1 {[%clk 0:03:31.7]} 23. Raxc1 {[%clk
0:02:51.2]} 23... Bf6 {[%clk 0:03:27]} 24. Nxf6+ {[%clk 0:02:44.9]} 24... gxf6
{[%clk 0:03:25.1]} 25. Nxb5 {[%clk 0:02:44.4]} 25... a6 {[%clk 0:03:22.8]} 26.
Nd6 {[%clk 0:02:42.2]} 26... Bd5 {[%clk 0:03:20.4]} 27. Rfe1 {[%clk 0:02:36.4]}
27... Rab8 {[%clk 0:03:13.6]} 28. b3 {[%clk 0:02:31.1]} 28... Rfd8 {[%clk
0:03:10.1]} 29. Ne4 {[%clk 0:02:29.2]} 29... Bxe4 {[%clk 0:03:07.8]} 30. Rxe4
{[%clk 0:02:28.2]} 30... f5 {[%clk 0:03:05.5]} 31. Re3 {[%clk 0:02:18.8]} 31...
Kh8 {[%clk 0:02:58.7]} 32. c4 {[%clk 0:02:15.8]} 32... Rb6 {[%clk 0:02:51.3]}
33. g3 {[%clk 0:02:13.3]} 33... Rc6 {[%clk 0:02:45.2]} 34. Ree1 {[%clk
0:02:05.5]} 34... Rdc8 {[%clk 0:02:41.5]} 35. Rcd1 {[%clk 0:02:01.3]} 35... a5
{[%clk 0:02:36.2]} 36. Rd7 {[%clk 0:01:57.7]} 36... Kg7 {[%clk 0:02:32.6]} 37.
Ra7 {[%clk 0:01:53.4]} 37... Rc5 {[%clk 0:02:23.5]} 38. Rd1 {[%clk 0:01:52]}
38... R8c7 {[%clk 0:02:10.4]} 39. Rd7 {[%clk 0:01:50.1]} 39... Rxd7 {[%clk
0:02:06.2]} 40. Rxd7 {[%clk 0:01:48.7]} 40... Kg6 {[%clk 0:02:00.9]} 41. Ra7
{[%clk 0:01:42.6]} 41... h5 {[%clk 0:01:58.3]} 42. f4 {[%clk 0:01:37.2]} 42...
e5 {[%clk 0:01:51.1]} 43. Ra6+ {[%clk 0:01:34.6]} 43... f6 {[%clk 0:01:49]} 44.
fxe5 {[%clk 0:01:32.9]} 44... Rxe5 {[%clk 0:01:46.6]} 45. Kf2 {[%clk 0:01:32.4]}
45... Kg5 {[%clk 0:01:43.6]} 46. Kf3 {[%clk 0:01:30.9]} 46... h4 {[%clk
0:01:37.9]} 47. gxh4+ {[%clk 0:01:23]} 47... Kxh4 {[%clk 0:01:35.8]} 48. Rxf6
{[%clk 0:01:22.5]} 48... Kg5 {[%clk 0:01:30.4]} 49. Ra6 {[%clk 0:01:13]} 49...
Rc5 {[%clk 0:01:25.6]} 50. Ra8 {[%clk 0:01:07.1]} 50... Kf6 {[%clk 0:01:15.4]}
51. Kf4 {[%clk 0:01:05.3]} 51... Ke6 {[%clk 0:01:09.9]} 52. h4 {[%clk
0:01:01.1]} 52... Kf6 {[%clk 0:01:02.7]} 53. h5 {[%clk 0:00:58.9]} 53... Kg7
{[%clk 0:01:00.9]} 54. Ra6 {[%clk 0:00:57.1]} 54... Kh7 {[%clk 0:00:57.3]} 55.
Ra7+ {[%clk 0:00:51.5]} 55... Kh6 {[%clk 0:00:54.3]} 56. Rf7 {[%clk 0:00:48.7]}
56... Kxh5 {[%clk 0:00:52.1]} 57. Rxf5+ {[%clk 0:00:47.9]} 57... Rxf5+ {[%clk
0:00:48.9]} 58. Kxf5 {[%clk 0:00:47.5]} 58... Kh4 {[%clk 0:00:47]} 59. c5 {[%clk
0:00:46.6]} 59... Kh3 {[%clk 0:00:44.3]} 60. c6 {[%clk 0:00:46.3]} 1-0

[Event "Live Chess"]
[Site "Chess.com"]
[Date "2023.05.21"]
[Round "-"]
[White "xx_blindpuffin_xx"]
[Black "Tilbs_12"]
[Result "1/2-1/2"]
[WhiteElo "2213"]
[BlackElo "1565"]
[TimeControl "300"]
[EndTime "17:24:02 PDT"]
[Termination "Game drawn by repetition"]

1. d3 {[%clk 0:04:56.2]} 1... d5 {[%clk 0:04:57.7]} 2. Nd2 {[%clk 0:04:50.3]}
2... e5 {[%clk 0:04:54.7]} 3. c4 {[%clk 0:04:49.7]} 3... c6 {[%clk 0:04:52.7]}
4. g3 {[%clk 0:04:48.6]} 4... Nf6 {[%clk 0:04:49.1]} 5. Bg2 {[%clk 0:04:47.4]}
5... Be6 {[%clk 0:04:47.4]} 6. Ngf3 {[%clk 0:04:46]} 6... Nbd7 {[%clk
0:04:45.3]} 7. O-O {[%clk 0:04:45.2]} 7... Bd6 {[%clk 0:04:36.7]} 8. b3 {[%clk
0:04:39]} 8... O-O {[%clk 0:04:34.6]} 9. Bb2 {[%clk 0:04:37.2]} 9... d4 {[%clk
0:04:19.2]} 10. a3 {[%clk 0:04:32.3]} 10... a5 {[%clk 0:04:14.6]} 11. Qc2 {[%clk
0:04:27.4]} 11... c5 {[%clk 0:04:12.5]} 12. Ng5 {[%clk 0:04:25.7]} 12... Rb8
{[%clk 0:03:57.8]} 13. Nxe6 {[%clk 0:04:23.9]} 13... fxe6 {[%clk 0:03:55.9]} 14.
e3 {[%clk 0:04:23.2]} 14... Qe8 {[%clk 0:03:38.9]} 15. Rae1 {[%clk 0:04:20]}
15... Qh5 {[%clk 0:03:36.9]} 16. exd4 {[%clk 0:04:12.4]} 16... cxd4 {[%clk
0:03:29]} 17. Ne4 {[%clk 0:04:07.4]} 17... Nxe4 {[%clk 0:03:22.2]} 18. Rxe4
{[%clk 0:04:05.3]} 18... Nf6 {[%clk 0:03:20.9]} 19. Ree1 {[%clk 0:04:00.1]}
19... Ng4 {[%clk 0:03:14.2]} 20. h3 {[%clk 0:03:57.7]} 20... Nf6 {[%clk
0:03:13]} 21. c5 {[%clk 0:03:53.1]} 21... Bc7 {[%clk 0:02:58.1]} 22. b4 {[%clk
0:03:51.9]} 22... Nd5 {[%clk 0:02:51.2]} 23. Qb3 {[%clk 0:03:35.5]} 23... axb4
{[%clk 0:02:46.6]} 24. axb4 {[%clk 0:03:32.3]} 24... Rfd8 {[%clk 0:02:40.8]} 25.
Re4 {[%clk 0:03:20.5]} 25... Qf7 {[%clk 0:02:30.4]} 26. Rfe1 {[%clk 0:03:15.7]}
26... Qd7 {[%clk 0:02:28.7]} 27. h4 {[%clk 0:03:12.8]} 27... Qb5 {[%clk
0:02:27.5]} 28. Bh3 {[%clk 0:03:10.4]} 28... Re8 {[%clk 0:02:21.2]} 29. Bxd4
{[%clk 0:02:52.3]} 29... Qxb4 {[%clk 0:01:58.4]} 30. Qxb4 {[%clk 0:02:47.1]}
30... Nxb4 {[%clk 0:01:55.8]} 31. Bxe5 {[%clk 0:02:46.6]} 31... Bxe5 {[%clk
0:01:51.4]} 32. Rxe5 {[%clk 0:02:45.7]} 32... Nxd3 {[%clk 0:01:48]} 33. R5e3
{[%clk 0:02:23.7]} 33... Nxe1 {[%clk 0:01:46.4]} 34. Rxe1 {[%clk 0:02:23.6]}
34... e5 {[%clk 0:01:43.5]} 35. Rb1 {[%clk 0:02:16.3]} 35... Re7 {[%clk
0:01:37.5]} 36. c6 {[%clk 0:02:12.3]} 36... b5 {[%clk 0:01:34.6]} 37. Bd7 {[%clk
0:02:09.5]} 37... Rxd7 {[%clk 0:01:01.9]} 38. cxd7 {[%clk 0:02:09.4]} 38... Kf7
{[%clk 0:00:59.2]} 39. f3 {[%clk 0:02:06.8]} 39... Ke7 {[%clk 0:00:57.3]} 40.
Rd1 {[%clk 0:02:04.7]} 40... b4 {[%clk 0:00:55.2]} 41. Kf2 {[%clk 0:02:04.3]}
41... b3 {[%clk 0:00:54.1]} 42. Ke3 {[%clk 0:02:03.7]} 42... b2 {[%clk
0:00:53.3]} 43. Rb1 {[%clk 0:02:03.3]} 43... Kxd7 {[%clk 0:00:51.7]} 44. Ke4
{[%clk 0:02:02.9]} 44... Ke6 {[%clk 0:00:50.7]} 45. g4 {[%clk 0:02:00.5]} 45...
g6 {[%clk 0:00:49]} 46. Ke3 {[%clk 0:01:56.4]} 46... Rb4 {[%clk 0:00:43.6]} 47.
Kd3 {[%clk 0:01:54.1]} 47... Rb3+ {[%clk 0:00:42.4]} 48. Ke2 {[%clk 0:01:52.2]}
48... Kd5 {[%clk 0:00:39.9]} 49. Rd1+ {[%clk 0:01:40.4]} 49... Kc4 {[%clk
0:00:38.6]} 50. Rb1 {[%clk 0:01:40.3]} 50... Kc3 {[%clk 0:00:37.6]} 51. Kd1
{[%clk 0:01:39.6]} 51... Kd4 {[%clk 0:00:33.6]} 52. Ke2 {[%clk 0:01:37.8]} 52...
e4 {[%clk 0:00:32.1]} 53. f4 {[%clk 0:01:30.6]} 53... Kc3 {[%clk 0:00:29.1]} 54.
Kd1 {[%clk 0:01:27.7]} 54... Ra3 {[%clk 0:00:26.8]} 55. Ke2 {[%clk 0:01:23.9]}
55... Ra1 {[%clk 0:00:25.5]} 56. Rxb2 {[%clk 0:01:23.4]} 56... Kxb2 {[%clk
0:00:24.3]} 57. Ke3 {[%clk 0:01:23.3]} 57... Ra4 {[%clk 0:00:22.9]} 58. f5
{[%clk 0:01:21.2]} 58... gxf5 {[%clk 0:00:19.5]} 59. gxf5 {[%clk 0:01:21.1]}
59... Kc3 {[%clk 0:00:13.3]} 60. f6 {[%clk 0:01:19.9]} 60... Ra6 {[%clk
0:00:11.9]} 61. f7 {[%clk 0:01:13.8]} 61... Rf6 {[%clk 0:00:11.5]} 62. Kxe4
{[%clk 0:01:13.7]} 62... Rxf7 {[%clk 0:00:10.9]} 63. Ke5 {[%clk 0:01:13]} 63...
Rg7 {[%clk 0:00:10.8]} 64. Kf6 {[%clk 0:01:09.3]} 64... Rg1 {[%clk 0:00:10.7]}
65. Kf5 {[%clk 0:01:07.7]} 65... Kd3 {[%clk 0:00:10.6]} 66. Kf4 {[%clk
0:01:07.1]} 66... Kd4 {[%clk 0:00:09.9]} 67. Kf3 {[%clk 0:01:06.3]} 67... Kd5
{[%clk 0:00:09.3]} 68. Kf2 {[%clk 0:01:05.7]} 68... Ke6 {[%clk 0:00:09.2]} 69.
Kxg1 {[%clk 0:01:04.7]} 69... Kf5 {[%clk 0:00:08.9]} 70. Kh2 {[%clk 0:01:01.9]}
70... Kg4 {[%clk 0:00:08.5]} 71. Kg2 {[%clk 0:01:01.6]} 71... Kxh4 {[%clk
0:00:08.1]} 72. Kh2 {[%clk 0:01:01.5]} 72... Kg5 {[%clk 0:00:07.5]} 73. Kg2
{[%clk 0:01:01.4]} 73... h5 {[%clk 0:00:06.8]} 74. Kh2 {[%clk 0:01:01.3]} 74...
h4 {[%clk 0:00:06.6]} 75. Kg2 {[%clk 0:01:01.2]} 75... Kg4 {[%clk 0:00:06.2]}
76. Kh2 {[%clk 0:01:01.1]} 76... h3 {[%clk 0:00:05.8]} 77. Kh1 {[%clk 0:01:00]}
77... Kh4 {[%clk 0:00:05.7]} 78. Kg1 {[%clk 0:00:59.7]} 78... Kg3 {[%clk
0:00:05.4]} 79. Kh1 {[%clk 0:00:59.6]} 79... Kf3 {[%clk 0:00:04.9]} 80. Kg1
{[%clk 0:00:59.5]} 80... Kg3 {[%clk 0:00:04.8]} 81. Kh1 {[%clk 0:00:59.4]} 81...
Kf3 {[%clk 0:00:04.7]} 82. Kg1 {[%clk 0:00:59.3]} 82... Kg3 {[%clk 0:00:04.6]}
1/2-1/2

[Event "Live Chess"]
[Site "Chess.com"]
[Date "2023.05.21"]
[Round "-"]
[White "LutherSullivan"]
[Black "peter-785"]
[Result "1-0"]
[WhiteElo "2103"]
[BlackElo "1194"]
[TimeControl "300"]
[EndTime "17:24:06 PDT"]
[Termination "LutherSullivan won by checkmate"]

1. b3 {[%clk 0:04:58.8]} 1... c5 {[%clk 0:04:54.5]} 2. Bb2 {[%clk 0:04:58.2]}
2... e6 {[%clk 0:04:49.9]} 3. e3 {[%clk 0:04:57.7]} 3... Nf6 {[%clk 0:04:48.4]}
4. Nf3 {[%clk 0:04:57.3]} 4... Be7 {[%clk 0:04:47.8]} 5. d4 {[%clk 0:04:56.4]}
5... cxd4 {[%clk 0:04:46]} 6. Nxd4 {[%clk 0:04:53.6]} 6... d6 {[%clk 0:04:45.2]}
7. Nd2 {[%clk 0:04:52.5]} 7... O-O {[%clk 0:04:42.5]} 8. Be2 {[%clk 0:04:52.1]}
8... a6 {[%clk 0:04:41.9]} 9. O-O {[%clk 0:04:51.4]} 9... b5 {[%clk 0:04:41.5]}
10. Bf3 {[%clk 0:04:48.8]} 10... Ra7 {[%clk 0:04:34.8]} 11. c4 {[%clk 0:04:44]}
11... bxc4 {[%clk 0:04:30.5]} 12. Nxc4 {[%clk 0:04:33.5]} 12... Bb7 {[%clk
0:04:09.1]} 13. Bxb7 {[%clk 0:04:22.5]} 13... Rxb7 {[%clk 0:04:06.5]} 14. Qf3
{[%clk 0:03:58]} 14... d5 {[%clk 0:04:01.5]} 15. Ne5 {[%clk 0:03:51.5]} 15...
Bd6 {[%clk 0:03:33.6]} 16. Ndc6 {[%clk 0:03:40]} 16... Nxc6 {[%clk 0:03:22.3]}
17. Nxc6 {[%clk 0:03:37.4]} 17... Qd7 {[%clk 0:02:58.6]} 18. Rac1 {[%clk
0:03:18.1]} 18... Re8 {[%clk 0:02:15]} 19. Bxf6 {[%clk 0:03:11.3]} 19... gxf6
{[%clk 0:02:12.5]} 20. Qxf6 {[%clk 0:03:10]} 20... e5 {[%clk 0:01:30.4]} 21.
Qg5+ {[%clk 0:02:46.8]} 21... Kh8 {[%clk 0:01:24.5]} 22. Qf6+ {[%clk 0:02:44]}
22... Kg8 {[%clk 0:01:23]} 23. e4 {[%clk 0:02:33.2]} 23... Re6 {[%clk
0:01:08.7]} 24. Qd8+ {[%clk 0:02:27.2]} 24... Re8 {[%clk 0:00:58.8]} 25. Qg5+
{[%clk 0:02:16.7]} 25... Kh8 {[%clk 0:00:55]} 26. Qf6+ {[%clk 0:02:14.4]} 26...
Kg8 {[%clk 0:00:53]} 27. Rc3 {[%clk 0:02:07.6]} 27... Re6 {[%clk 0:00:50.4]} 28.
Rg3+ {[%clk 0:02:02]} 28... Kf8 {[%clk 0:00:49.5]} 29. Qh8# {[%clk 0:02:01.6]}
1-0

[Event "Live Chess"]
[Site "Chess.com"]
[Date "2023.05.21"]
[Round "-"]
[White "grillage"]
[Black "CeladonFish"]
[Result "1-0"]
[WhiteElo "1814"]
[BlackElo "1108"]
[TimeControl "300"]
[EndTime "17:24:21 PDT"]
[Termination "grillage won by checkmate"]

1. d4 {[%clk 0:04:59]} 1... Nf6 {[%clk 0:04:58.3]} 2. Nc3 {[%clk 0:04:56.1]}
2... g6 {[%clk 0:04:57.8]} 3. Bf4 {[%clk 0:04:52.9]} 3... Bg7 {[%clk 0:04:57.3]}
4. e4 {[%clk 0:04:51.8]} 4... O-O {[%clk 0:04:54.5]} 5. e5 {[%clk 0:04:51]} 5...
Nh5 {[%clk 0:04:50.6]} 6. Bd2 {[%clk 0:04:49.3]} 6... d6 {[%clk 0:04:48.3]} 7.
g4 {[%clk 0:04:48.1]} 7... dxe5 {[%clk 0:04:40.6]} 8. gxh5 {[%clk 0:04:46.2]}
8... exd4 {[%clk 0:04:39.6]} 9. Ne4 {[%clk 0:04:36]} 9... Bf5 {[%clk 0:04:34.4]}
10. Bd3 {[%clk 0:04:34.4]} 10... Bxe4 {[%clk 0:04:28.2]} 11. Bxe4 {[%clk
0:04:32.5]} 11... d3 {[%clk 0:04:27.3]} 12. Bxd3 {[%clk 0:04:30.1]} 12... Bxb2
{[%clk 0:04:26.4]} 13. Rb1 {[%clk 0:04:29.3]} 13... Bg7 {[%clk 0:04:23.1]} 14.
Rxb7 {[%clk 0:04:16.9]} 14... Qd5 {[%clk 0:04:21.3]} 15. Qf3 {[%clk 0:03:49.3]}
15... Qxa2 {[%clk 0:04:16.3]} 16. Ne2 {[%clk 0:03:38.7]} 16... Qa1+ {[%clk
0:04:12.2]} 17. Bc1 {[%clk 0:03:37.8]} 17... Bh6 {[%clk 0:04:05.3]} 18. O-O
{[%clk 0:03:36]} 18... Bxc1 {[%clk 0:04:01.5]} 19. Rxc1 {[%clk 0:03:34]} 19...
Qf6 {[%clk 0:03:48.4]} 20. Qxf6 {[%clk 0:03:28.5]} 20... exf6 {[%clk 0:03:47.6]}
21. Rxc7 {[%clk 0:03:27.8]} 21... gxh5 {[%clk 0:03:44.2]} 22. Nf4 {[%clk
0:03:24.4]} 22... h4 {[%clk 0:03:42.6]} 23. Nh5 {[%clk 0:03:19]} 23... Na6
{[%clk 0:03:34]} 24. Re7 {[%clk 0:03:08.7]} 24... Nc5 {[%clk 0:03:26.1]} 25. Bf5
{[%clk 0:03:01.7]} 25... h6 {[%clk 0:03:06.5]} 26. Nxf6+ {[%clk 0:02:59]} 26...
Kg7 {[%clk 0:03:05.1]} 27. Nd7 {[%clk 0:02:50.1]} 27... Nxd7 {[%clk 0:03:02]}
28. Rxd7 {[%clk 0:02:49.4]} 28... Rfd8 {[%clk 0:02:52.5]} 29. Ra1 {[%clk
0:02:42.3]} 29... Rxd7 {[%clk 0:02:49.5]} 30. Bxd7 {[%clk 0:02:41.2]} 30... Kf6
{[%clk 0:02:48.1]} 31. c4 {[%clk 0:02:38.3]} 31... a5 {[%clk 0:02:47.3]} 32. c5
{[%clk 0:02:33.6]} 32... Ke7 {[%clk 0:02:46.4]} 33. c6 {[%clk 0:02:32.2]} 33...
Kd8 {[%clk 0:02:44.8]} 34. Ra4 {[%clk 0:02:25.8]} 34... Kc7 {[%clk 0:02:43]} 35.
Kg2 {[%clk 0:02:24.2]} 35... f6 {[%clk 0:02:38.4]} 36. Kh3 {[%clk 0:02:23.3]}
36... f5 {[%clk 0:02:35]} 37. Kxh4 {[%clk 0:02:22.6]} 37... f4 {[%clk 0:02:33]}
38. Kg4 {[%clk 0:02:21.5]} 38... Rg8+ {[%clk 0:02:30.6]} 39. Kxf4 {[%clk
0:02:20.4]} 39... Rg2 {[%clk 0:02:29.6]} 40. Kf3 {[%clk 0:02:12.6]} 40... Rxh2
{[%clk 0:02:26.6]} 41. Rxa5 {[%clk 0:02:11.9]} 41... h5 {[%clk 0:02:22.6]} 42.
Ra7+ {[%clk 0:02:10.1]} 42... Kb8 {[%clk 0:02:20.5]} 43. Rb7+ {[%clk 0:02:07.7]}
43... Ka8 {[%clk 0:02:18.2]} 44. Rb2 {[%clk 0:02:01.2]} 44... Rh3+ {[%clk
0:02:13.8]} 45. Bxh3 {[%clk 0:01:58.9]} 45... h4 {[%clk 0:02:12.2]} 46. c7
{[%clk 0:01:55.2]} 46... Ka7 {[%clk 0:02:11.6]} 47. Rc2 {[%clk 0:01:48.6]} 47...
Kb6 {[%clk 0:02:05.5]} 48. c8=Q {[%clk 0:01:46]} 48... Kb5 {[%clk 0:02:04.5]}
49. Rb2+ {[%clk 0:01:44.5]} 49... Ka5 {[%clk 0:02:02.1]} 50. Qa8# {[%clk
0:01:43.6]} 1-0